bitfinex/quotes_SOLUSD_20251030
["timestamp","ask_amount","ask_price","bid_price","bid_amount"]
[1761857404456,8.79825678,181.6,181.56,61.7]
[1761857404643,8.79825678,181.58,181.56,61.7]
[1761857404844,21.292,181.61,181.52,61.7]
[1761857404845,8.79825678,181.57,181.52,61.7]
[1761857405044,8.79825678,181.55,181.51,61.7]
[1761857405280,0.7,181.54,181.51,61.7]
[1761857405629,8.79825678,181.56,181.51,61.7]
[1761857405913,0.7,181.55,181.51,61.7]
[1761857406283,6.2082198,181.55,181.51,61.7]
[1761857406483,14.30612026,181.56,181.51,76.00757712]
[1761857406794,20.592,181.58,181.54,8.79825678]
[1761857407183,5.50727348,181.58,181.54,8.79825678]
[1761857407386,5.50727348,181.58,181.54,9.48825678]
[1761857407601,0.7,181.57,181.51,62.39]
[1761857407807,9.49825678,181.57,181.52,8.79825678]
[1761857408004,8.79825678,181.56,181.51,70.49825678]
[1761857408206,14.30516795,181.59,181.54,8.79825678]
[1761857408388,5.50691117,181.59,181.54,8.79825678]
[1761857408581,5.50691117,181.59,181.54,9.48825678]
[1761857408780,6.20691117,181.59,181.54,9.48825678]
[1761857408983,14.30516795,181.59,181.54,8.79825678]
[1761857409183,0.7,181.58,181.54,8.79825678]
[1761857409710,5.50751776,181.57,181.54,8.79825678]
[1761857410495,20.592,181.6,181.55,8.79825678]
[1761857410694,26.79871057,181.6,181.55,8.79825678]
[1761857410898,0.7,181.59,181.55,8.79825678]
[1761857411298,26.09871057,181.6,181.56,0.69]
[1761857411510,5.50633231,181.61,181.57,8.79825678]
[1761857412012,0.7,181.61,181.58,8.79825678]
[1761857412199,0.2,181.62,181.59,9.48825678]
[1761857412404,0.7,181.61,181.57,8.79825678]
[1761857412585,15.20447465,181.62,181.57,8.79825678]
[1761857412791,0.9,181.62,181.57,9.48825678]
[1761857412993,6.40604804,181.62,181.58,8.79825678]
[1761857413190,6.40604804,181.62,181.6,8.79825678]
[1761857413191,0.2,181.62,181.6,8.79825678]
[1761857413396,0.2,181.62,181.61,8.79825678]
[1761857413615,0.2,181.62,181.61,14.30456149]
[1761857413791,0.2,181.62,181.61,14.99456149]
[1761857415208,0.2,181.62,181.58,61.7]
[1761857415399,6.38600154,181.62,181.58,61.7]
[1761857416014,5.70600154,181.62,181.58,61.7]
[1761857416510,6.38600154,181.62,181.58,61.7]
[1761857417910,0.88,181.62,181.58,70.49825678]
[1761857418116,0.2,181.62,181.58,76.66539112]
[1761857418315,0.2,181.62,181.58,71.15825678]
[1761857418502,5.70612263,181.62,181.58,71.15825678]
[1761857418701,0.2,181.62,181.58,71.15825678]
[1761857418996,0.2,181.62,181.59,0.66]
[1761857419202,0.2,181.62,181.59,9.45825678]
[1761857419712,5.7060454,181.62,181.59,9.45825678]
[1761857420217,5.7060454,181.62,181.59,0.66]
[1761857420403,5.7060454,181.62,181.58,70.49825678]
[1761857420587,0.2,181.62,181.58,61.7]
[1761857420792,6.38616025,181.62,181.57,70.49825678]
[1761857420993,6.38616025,181.62,181.57,71.15825678]
[1761857421720,6.38616025,181.62,181.55,8.79825678]
[1761857421721,8.79825678,181.6,181.55,8.79825678]
[1761857422011,14.98542965,181.59,181.54,80.28708447]
[1761857422214,14.98542965,181.59,181.54,8.79825678]
[1761857422404,8.79825678,181.57,181.52,8.79825678]
[1761857422807,8.79825678,181.57,181.52,9.45825678]
[1761857422992,9.47825678,181.57,181.52,9.45825678]
[1761857423196,8.79825678,181.58,181.52,14.30714142]
[1761857423519,8.79825678,181.58,181.53,9.45825678]
[1761857423822,14.98542965,181.59,181.53,9.45825678]
[1761857424223,8.79825678,181.58,181.53,9.45825678]
[1761857424724,9.47825678,181.58,181.53,9.45825678]
[1761857425105,8.79825678,181.58,181.53,9.45825678]
[1761857425425,9.47825678,181.57,181.52,8.79825678]
[1761857425724,8.79825678,181.56,181.51,8.79825678]
[1761857426022,14.3062089,181.56,181.51,14.96753771]
[1761857426206,9.47825678,181.57,181.52,0.66]
[1761857426397,8.79825678,181.58,181.52,9.45825678]
[1761857426719,14.30572212,181.58,181.52,9.45825678]
[1761857427618,14.98572212,181.58,181.52,9.45825678]
[1761857428520,8.79825678,181.56,181.5,19.24708447]
[1761857428901,9.46825678,181.57,181.51,9.45825678]
[1761857429101,20.592,181.6,181.56,8.79825678]
[1761857429513,0.87,181.62,181.58,8.79825678]
[1761857429817,0.87,181.62,181.59,8.79825678]
[1761857429818,5.70604428,181.62,181.59,8.79825678]
[1761857430016,5.70604428,181.62,181.58,8.79825678]
[1761857430637,5.70604428,181.62,181.57,6.16746612]
[1761857430638,15.17430106,181.62,181.57,8.79825678]
[1761857430836,15.17430106,181.62,181.57,0.66]
[1761857431211,0.2,181.62,181.57,9.45825678]
[1761857431413,0.2,181.62,181.59,8.79825678]
[1761857432224,0.2,181.62,181.59,9.45825678]
[1761857432931,5.70605771,181.62,181.59,9.45825678]
[1761857433109,5.70605771,181.62,181.59,0.66]
[1761857433502,5.70605771,181.62,181.58,8.79825678]
[1761857433705,5.70605771,181.62,181.58,9.45825678]
[1761857434443,0.2,181.62,181.59,0.66]
[1761857434623,0.2,181.62,181.59,9.45825678]
[1761857435127,0.2,181.62,181.6,0.66]
[1761857435738,0.2,181.62,181.58,76.0054306]
[1761857436034,5.70603361,181.62,181.58,71.15825678]
[1761857436244,0.2,181.62,181.59,0.66]
[1761857436536,0.2,181.62,181.59,9.45825678]
[1761857436913,5.70604065,181.62,181.59,0.66]
[1761857437912,5.70604065,181.62,181.59,14.96511248]
[1761857437913,0.2,181.62,181.59,14.96511248]
[1761857438128,0.2,181.62,181.61,8.79825678]
[1761857438332,0.2,181.62,181.61,14.30456149]
[1761857438527,0.2,181.62,181.61,86.45338918]
[1761857439036,0.77,181.72,181.62,9.78882769]
[1761857439230,0.77,181.72,181.69,8.79825678]
[1761857439841,0.77,181.72,181.67,0.66]
[1761857440139,0.1,181.72,181.69,8.79825678]
[1761857440540,9.46825678,181.71,181.63,0.66]
[1761857440835,0.67,181.7,181.65,8.79825678]
[1761857441138,5.60300259,181.72,181.68,8.79825678]
[1761857441320,5.60300259,181.72,181.69,9.45825678]
[1761857441519,5.60300259,181.72,181.69,0.66]
[1761857443850,5.60300259,181.72,181.53,63.69999999]
[1761857443851,6.45569312,181.71,181.53,63.69999999]
[1761857444147,0.67,181.71,181.63,6.44569312]
[1761857444324,5.78569312,181.69,181.64,5.78569312]
[1761857444725,5.78569312,181.69,181.64,6.44569312]
[1761857445037,6.45569312,181.69,181.64,6.44569312]
[1761857445341,0.67,181.68,181.64,6.44569312]
[1761857445729,5.50448615,181.67,181.64,0.66]
[1761857447842,14.42942152,181.7,181.64,6.44569312]
[1761857448038,25.7193056,181.69,181.64,5.78569312]
[1761857448351,19.93361248,181.69,181.61,9.78882769]
[1761857448533,5.78569312,181.66,181.6,6.44569312]
[1761857448724,5.78569312,181.66,181.61,5.78569312]
[1761857448923,5.78569312,181.66,181.6,0.66]
[1761857449242,5.78569312,181.65,181.6,6.44569312]
[1761857449444,5.78569312,181.65,181.58,5.78569312]
[1761857449445,5.78569312,181.63,181.58,5.78569312]
[1761857449624,5.78569312,181.64,181.59,0.66]
[1761857449820,5.50569839,181.63,181.59,0.66]
[1761857450220,5.78569312,181.65,181.6,5.78569312]
[1761857450530,6.45569312,181.65,181.6,5.78569312]
[1761857450742,0.67,181.64,181.6,5.78569312]
[1761857450944,0.67,181.64,181.59,11.29255931]
[1761857451140,6.45569312,181.64,181.59,11.95255931]
[1761857451320,6.45569312,181.64,181.59,6.44569312]
[1761857451835,5.50569839,181.63,181.59,6.44569312]
[1761857452038,5.50569839,181.63,181.59,0.66]
[1761857452231,6.17569839,181.63,181.59,6.44569312]
[1761857452737,5.50569839,181.63,181.59,6.44569312]
[1761857452936,6.17569839,181.63,181.59,6.44569312]
[1761857453136,0.67,181.63,181.59,6.44569312]
[1761857453334,2.27463943,181.65,181.59,8.4415031]
[1761857453565,0.67,181.65,181.6,2.93463943]
[1761857453771,2.94463943,181.65,181.6,2.93463943]
[1761857454053,5.50539528,181.64,181.6,2.93463943]
[1761857454842,6.17539528,181.64,181.6,2.93463943]
[1761857455036,7.77981013,181.65,181.6,2.93463943]
[1761857455358,13.73118524,181.71,181.6,2.93463943]
[1761857455359,4.73262752,181.73,181.64,2.27463943]
[1761857455656,4.73262752,181.73,181.64,2.93463943]
[1761857455657,2.27463943,181.69,181.64,2.93463943]
[1761857455844,21.262,181.7,181.65,2.27463943]
[1761857456027,23.53663943,181.7,181.65,2.27463943]
[1761857456229,5.50388023,181.69,181.65,0.66]
[1761857456532,8.44851966,181.69,181.63,8.44028061]
[1761857457053,2.94463943,181.69,181.63,8.44028061]
[1761857457360,2.27463943,181.68,181.64,5.50539528]
[1761857457737,2.27463943,181.68,181.64,6.16539528]
[1761857458249,2.27463943,181.69,181.64,6.16539528]
[1761857458431,0.67,181.68,181.64,5.50539528]
[1761857458636,0.67,181.68,181.64,19.26888349]
[1761857458840,2.27463943,181.69,181.64,19.92888349]
[1761857459045,0.66,181.69,181.64,22.20352292]
[1761857460360,2.93463943,181.69,181.64,22.20352292]
[1761857460947,0.66,181.69,181.64,22.20352292]
[1761857461344,5.78826276,181.7,181.65,6.44826276]
[1761857461755,6.44826276,181.7,181.66,0.66]
[1761857461964,0.66,181.69,181.65,6.44826276]
[1761857462159,6.44826276,181.69,181.64,19.26888349]
[1761857462359,6.44826276,181.69,181.64,25.71714625]
[1761857462861,0.66,181.69,181.65,5.78826276]
[1761857463050,0.66,181.71,181.65,6.44826276]
[1761857463251,0.66,181.71,181.67,5.78826276]
[1761857463638,0.66,181.71,181.66,5.78826276]
[1761857464053,0.66,181.71,181.66,6.44826276]
[1761857464376,0.66,181.71,181.67,19.26570154]
[1761857464561,0.1,181.72,181.67,25.7139643]
[1761857464746,0.1,181.72,181.69,5.78826276]
[1761857465164,0.1,181.72,181.71,5.78826276]
[1761857465345,0.1,181.72,181.7,6.44826276]
[1761857466476,0.1,181.72,181.71,5.50327444]
[1761857469045,0.1,181.72,181.7,6.44826276]
[1761857469249,0.1,181.72,181.7,5.78826276]
[1761857469568,0.1,181.72,181.7,11.95171724]
[1761857470871,0.1,181.72,181.71,0.66]
[1761857471076,0.1,181.72,181.71,21.74036489]
[1761857471275,0.1,181.72,181.71,15.95210213]
[1761857471276,1e-08,181.72,181.71,15.95210213]
[1761857471583,1e-08,181.72,181.71,21.74036489]
[1761857473255,1e-08,181.73,181.71,42.61668803]
[1761857473452,0.66,181.84,181.76,9.78882769]
[1761857473771,0.66,181.84,181.8,5.78826276]
[1761857473976,0.66,181.84,181.81,5.78826276]
[1761857474149,0.66,181.84,181.8,5.78826276]
[1761857474349,2.87700338,181.86,181.83,5.78826276]
[1761857474552,2.87700338,181.86,181.75,20.592]
[1761857474553,2.87700338,181.86,181.84,6.44826276]
[1761857474754,1e-08,181.86,181.85,5.78826276]
[1761857474958,1e-08,181.86,181.85,16.23709045]
[1761857475254,1e-08,181.86,181.83,5.78826276]
[1761857475255,0.1,181.88,181.83,5.49964252]
[1761857475481,0.76,181.88,181.84,5.78826276]
[1761857475668,0.76,181.88,181.85,5.78826276]
[1761857476249,0.1,181.88,181.87,5.78826276]
[1761857476474,0.79,181.88,181.83,5.49964252]
[1761857476769,0.79,181.88,181.83,25.74701158]
[1761857476976,0.1,181.88,181.84,6.49826276]
[1761857477162,0.1,181.88,181.85,5.78826276]
[1761857477365,0.1,181.88,181.86,5.49873529]
[1761857477664,0.79,181.88,181.86,5.49873529]
[1761857478349,0.1,181.88,181.86,5.49873529]
[1761857478851,0.79,181.88,181.86,5.49873529]
[1761857479063,0.79,181.88,181.84,11.28744145]
[1761857479358,0.79,181.88,181.84,25.03579164]
[1761857479869,0.1,181.88,181.87,5.78826276]
[1761857480178,38.15448947,182.0,181.88,0.28432314]
[1761857480179,5.78826276,182.0,181.88,0.28432314]
[1761857480477,0.69,182.03,181.95,9.78882769]
[1761857480693,0.69,182.08,181.95,9.78882769]
[1761857480854,0.69,182.11,182.01,5.78826276]
[1761857481051,5.78826276,182.07,181.98,9.78882769]
[1761857481352,4.50605969,182.1,181.95,10.49882769]
[1761857481552,5.78826276,182.03,181.97,5.78826276]
[1761857481972,0.69,182.02,181.98,5.78826276]
[1761857482146,0.69,182.02,182.0,5.78826276]
[1761857483366,0.69,182.02,182.01,5.49420361]
[1761857483553,26.38026276,182.07,182.01,11.28246637]
[1761857483886,6.47826276,182.06,182.0,11.2827673]
[1761857484089,6.47826276,182.06,181.99,5.78826276]
[1761857484254,0.69,182.05,181.99,5.78826276]
[1761857484460,0.69,182.05,181.99,0.71]
[1761857484797,0.69,182.05,182.01,5.78826276]
[1761857485574,0.69,182.05,182.02,5.49390176]
[1761857485785,0.69,182.05,182.01,5.78826276]
[1761857486363,0.69,182.05,182.01,25.01793592]
[1761857486764,0.69,182.05,182.01,19.22967316]
[1761857486958,0.69,182.06,182.03,5.78826276]
[1761857487158,5.78826276,182.1,182.03,5.78826276]
[1761857487459,5.78826276,182.11,182.04,11.28156093]
[1761857487668,5.78826276,182.12,182.05,5.78826276]
[1761857487869,5.15988013,182.15,182.05,5.78826276]
[1761857488084,5.15988013,182.15,182.06,5.78826276]
[1761857488085,5.78826276,182.13,182.06,5.78826276]
[1761857488289,6.47826276,182.14,182.08,5.78826276]
[1761857488463,5.78826276,182.14,182.05,0.71]
[1761857488667,5.78826276,182.12,182.05,5.78826276]
[1761857488867,5.78826276,182.11,182.05,5.78826276]
[1761857489172,6.45826276,182.12,182.04,19.22654361]
[1761857489371,5.78826276,182.12,182.04,19.22654361]
[1761857489576,0.67,182.11,182.06,5.49269471]
[1761857489770,5.78826276,182.1,182.04,5.78826276]
[1761857490077,6.45826276,182.11,182.05,5.78826276]
[1761857490273,0.67,182.1,182.05,5.78826276]
[1761857490873,5.78826276,182.09,182.03,11.28179709]
[1761857491267,20.592,182.11,182.05,5.78826276]
[1761857491465,27.05026276,182.11,182.05,5.78826276]
[1761857491676,0.67,182.1,182.06,5.49269471]
[1761857492163,70.5122,182.19,182.05,27.46498214]
[1761857492365,0.67,182.23,182.16,5.78826276]
[1761857492671,0.67,182.22,182.17,5.78826276]
[1761857492877,0.67,182.22,182.16,5.78826276]
[1761857493567,0.67,182.22,182.17,25.00108594]
[1761857493784,0.67,182.24,182.17,19.93282318]
[1761857494111,5.78826276,182.23,182.15,0.72]
[1761857494271,0.67,182.24,182.09,20.592]
[1761857494272,5.78826276,182.19,182.12,0.72]
[1761857494593,21.262,182.24,182.12,0.72]
[1761857494594,5.78826276,182.22,182.12,0.72]
[1761857494792,5.78826276,182.21,182.14,5.78826276]
[1761857495203,0.67,182.2,182.13,5.78826276]
[1761857495765,0.67,182.2,182.14,5.4902822]
[1761857495970,0.67,182.22,182.15,0.72]
[1761857496170,0.67,182.22,182.14,5.4902822]
[1761857496489,5.78826276,182.21,182.14,11.27854496]
[1761857496880,5.78826276,182.19,182.13,5.49057154]
[1761857497105,5.78826276,182.17,182.11,5.49118664]
[1761857497307,20.592,182.22,182.11,5.49118664]
[1761857497308,0.67,182.19,182.11,19.21915325]
[1761857497477,5.78826276,182.17,182.11,19.21915325]
[1761857497676,0.67,182.21,182.14,5.78826276]
[1761857497877,0.67,182.21,182.16,5.4896794]
[1761857498183,6.45826276,182.21,182.12,14.44668529]
[1761857498380,0.67,182.21,182.15,5.78826276]
[1761857498585,0.67,182.24,182.17,5.78826276]
[1761857498782,0.67,182.24,182.16,0.72]
[1761857498986,0.67,182.24,182.17,5.78826276]
[1761857499172,0.67,182.24,182.19,5.78826276]
[1761857499365,9.88882769,182.31,182.21,5.78826276]
[1761857499366,0.67,182.27,182.21,5.78826276]
[1761857499778,0.67,182.27,182.2,11.2766204]
[1761857499968,6.45826276,182.27,182.2,5.48835764]
[1761857500165,0.67,182.27,182.2,24.99780591]
[1761857500375,0.67,182.27,182.21,5.78826276]
[1761857500566,0.1,182.31,182.22,9.78882769]
[1761857500770,0.1,182.31,182.26,5.78826276]
[1761857500999,0.67,182.3,182.25,5.78826276]
[1761857501496,0.67,182.3,182.23,0.72]
[1761857501677,0.67,182.3,182.23,5.78826276]
[1761857501884,6.15548659,182.3,182.24,5.48726953]
[1761857502096,0.67,182.29,182.24,5.48726953]
[1761857502392,0.67,182.29,182.18,30.38082769]
[1761857502393,5.78826276,182.28,182.21,5.78826276]
[1761857502592,21.262,182.29,182.18,5.48907673]
[1761857502593,5.78826276,182.27,182.2,5.78826276]
[1761857502896,26.38026276,182.27,182.19,5.78826276]
[1761857503197,0.67,182.26,182.18,5.48907673]
[1761857503414,0.67,182.26,182.19,5.78826276]
[1761857503907,11.2752312,182.25,182.18,5.78826276]
[1761857504085,24.99265232,182.25,182.17,5.78826276]
[1761857504285,5.78826276,182.22,182.15,5.78826276]
[1761857504513,26.38026276,182.23,182.15,5.78826276]
[1761857504688,21.262,182.22,182.15,5.78826276]
[1761857505186,0.67,182.21,182.15,5.78826276]
[1761857505394,0.67,182.21,182.15,8.7463535]
[1761857505800,0.67,182.21,182.16,5.4896794]
[1761857506002,0.67,182.23,182.18,8.7463535]
[1761857506178,20.592,182.25,182.19,8.7463535]
[1761857506380,0.67,182.25,182.2,8.7463535]
[1761857506796,9.4163535,182.25,182.18,8.7463535]
[1761857507074,0.67,182.24,182.18,8.7463535]
[1761857507397,0.67,182.24,182.16,19.2138779]
[1761857507398,0.67,182.24,182.19,8.7463535]
[1761857507601,0.67,182.26,182.21,8.7463535]
[1761857507896,0.67,182.25,182.2,8.7463535]
[1761857508097,0.67,182.25,182.18,8.7463535]
[1761857508098,9.4163535,182.25,182.18,8.7463535]
[1761857508483,0.67,182.24,182.18,8.7463535]
[1761857509501,21.262,182.24,182.16,8.7463535]
[1761857509678,8.7463535,182.23,182.16,8.7463535]
[1761857509877,8.7463535,182.23,182.13,10.50882769]
[1761857509878,8.7463535,182.21,182.15,8.7463535]
[1761857510083,14.9042253,182.22,182.14,5.49016796]
[1761857510308,0.67,182.21,182.16,8.7463535]
[1761857510803,9.4163535,182.21,182.14,14.23652146]
[1761857511181,0.67,182.2,182.16,8.7463535]
[1761857511494,20.592,182.25,182.19,8.7463535]
[1761857511698,21.262,182.25,182.21,8.7463535]
[1761857511901,26.74917415,182.25,182.21,8.7463535]
[1761857512196,26.74917415,182.25,182.19,8.7463535]
[1761857512197,0.67,182.24,182.19,8.7463535]
[1761857512990,0.67,182.24,182.17,5.48937805]
[1761857513190,5.48757065,182.23,182.19,8.7463535]
[1761857513395,0.67,182.26,182.2,8.7463535]
[1761857513598,0.67,182.26,182.21,8.7463535]
[1761857513800,20.592,182.25,182.21,8.7463535]
[1761857514416,21.262,182.25,182.21,8.7463535]
[1761857514994,0.67,182.24,182.16,0.72]
[1761857515197,27.95285078,182.23,182.13,0.72]
[1761857515397,0.67,182.22,182.16,8.7463535]
[1761857515602,0.67,182.22,182.17,8.7463535]
[1761857516212,0.67,182.22,182.16,8.7463535]
[1761857516906,0.67,182.22,182.17,8.7463535]
[1761857517214,5.48817298,182.21,182.16,8.7463535]
[1761857517609,0.67,182.2,182.17,8.7463535]
[1761857518516,6.15863169,182.2,182.17,8.7463535]
[1761857518990,13.71892663,182.23,182.19,8.7463535]
[1761857518991,0.68,182.23,182.19,8.7463535]
[1761857519195,3.61108035,182.24,182.2,0.68]
[1761857519525,5.4869748,182.25,182.21,8.7463535]
[1761857519709,4.29090297,182.24,182.21,8.7463535]
[1761857519905,4.29090297,182.24,182.2,8.7463535]
[1761857520098,0.68,182.26,182.22,8.7463535]
[1761857520418,6.16673334,182.26,182.22,8.7463535]
[1761857521000,6.16673334,182.26,182.23,8.7463535]
[1761857521199,3.61545749,182.25,182.23,8.7463535]
[1761857521401,0.68,182.3,182.24,8.7463535]
[1761857521597,0.68,182.29,182.24,8.7463535]
[1761857521839,0.68,182.29,182.15,9.78882769]
[1761857521840,32.95357873,182.28,182.18,0.68]
[1761857522137,12.36157873,182.27,182.18,0.68]
[1761857522325,3.61522523,182.26,182.2,8.7463535]
[1761857522499,3.61522523,182.25,182.2,8.7463535]
[1761857522702,9.1022857,182.25,182.21,8.7463535]
[1761857522918,3.61522523,182.24,182.21,8.7463535]
[1761857523533,4.29522523,182.24,182.21,8.7463535]
[1761857523732,3.61522523,182.23,182.21,8.7463535]
[1761857524027,0.68,182.3,182.22,9.4263535]
[1761857524222,3.62341733,182.29,182.26,8.7463535]
[1761857524446,3.62341733,182.28,182.26,8.7463535]
[1761857524724,3.62341733,182.27,182.25,8.7463535]
[1761857524912,3.62341733,182.26,182.24,8.7463535]
[1761857525114,4.30341733,182.25,182.18,8.7463535]
[1761857525306,3.62341733,182.24,182.18,8.7463535]
[1761857525503,3.62341733,182.23,182.2,8.7463535]
[1761857525817,4.30341733,182.22,182.18,8.7463535]
[1761857526017,3.62341733,182.21,182.18,8.7463535]
[1761857526337,3.62341733,182.2,182.18,0.68]
[1761857526543,3.62341733,182.19,182.18,0.68]
[1761857526843,5.48726953,182.24,182.18,0.68]
[1761857527144,3.62443826,182.23,182.18,6.16904412]
[1761857527311,3.62443826,182.22,182.19,9.78882769]
[1761857527511,0.68,182.3,182.21,8.7463535]
[1761857527828,3.62446502,182.29,182.26,8.7463535]
[1761857528018,3.62446502,182.28,182.25,8.7463535]
[1761857528214,3.62446502,182.27,182.25,8.7463535]
[1761857528418,3.62446502,182.26,182.25,8.7463535]
[1761857528820,39.12949707,182.26,182.19,0.68]
[1761857529014,13.05081852,182.25,182.18,8.7463535]
[1761857529208,3.62446502,182.24,182.18,8.7463535]
[1761857529520,3.62446502,182.23,182.18,8.7463535]
[1761857529713,3.62446502,182.22,182.17,9.4263535]
[1761857530045,3.62446502,182.21,182.18,8.7463535]
[1761857530219,3.62446502,182.2,182.18,8.7463535]
[1761857530527,20.592,182.24,182.19,9.4263535]
[1761857530831,3.60975974,182.23,182.21,8.7463535]
[1761857531133,5.48666972,182.26,182.22,8.7463535]
[1761857531305,5.48666972,182.26,182.19,8.7463535]
[1761857531306,13.03816507,182.25,182.19,8.7463535]
[1761857531506,12.35816507,182.24,182.18,8.7463535]
[1761857531712,3.61181157,182.23,182.2,8.7463535]
[1761857532030,3.61181157,182.22,182.21,8.7463535]
[1761857532338,3.61181157,182.24,182.21,8.7463535]
[1761857532513,3.61181157,182.23,182.21,8.7463535]
[1761857532712,3.61181157,182.22,182.21,8.7463535]
[1761857533020,12.35816507,182.22,182.13,0.68]
[1761857533246,13.03816507,182.21,182.15,8.7463535]
[1761857533422,3.61181157,182.2,182.16,8.7463535]
[1761857533621,26.07926989,182.24,182.16,8.7463535]
[1761857533622,3.61181157,182.19,182.16,8.7463535]
[1761857533821,3.61881122,182.18,182.16,8.7463535]
[1761857534003,3.61897733,182.17,182.16,8.7463535]
[1761857534204,30.0183535,182.24,182.17,0.68]
[1761857534408,3.62112878,182.23,182.17,9.4263535]
[1761857534608,3.62112878,182.22,182.17,9.4263535]
[1761857534811,3.62112878,182.21,182.17,9.4263535]
[1761857535109,3.62112878,182.2,182.17,9.4263535]
[1761857535309,3.62112878,182.19,182.16,8.7463535]
[1761857535531,3.62112878,182.18,182.16,9.4363535]
[1761857535735,3.62112878,182.17,182.16,0.69]
[1761857535923,3.62501163,182.17,182.16,9.4363535]
[1761857536822,3.62501163,182.19,182.16,9.4363535]
[1761857537019,3.62501163,182.19,182.14,20.592]
[1761857537020,5.48666739,182.26,182.18,8.7463535]
[1761857537222,13.05481639,182.25,182.19,8.7463535]
[1761857537430,5.48757065,182.23,182.19,8.7463535]
[1761857537611,3.62846289,182.22,182.17,0.69]
[1761857537811,5.48757065,182.23,182.19,8.7463535]
[1761857538010,6.16757065,182.23,182.18,8.7463535]
[1761857538425,4.51178922,182.26,182.2,8.7463535]
[1761857538426,0.68,182.26,182.2,8.7463535]
[1761857538622,20.592,182.26,182.23,8.7463535]
[1761857538826,21.272,182.28,182.23,8.7463535]
[1761857539137,4.61178922,182.31,182.25,8.7463535]
[1761857539138,14.49296551,182.31,182.25,8.7463535]
[1761857539339,5.48546352,182.3,182.26,8.7463535]
[1761857539724,0.1,182.31,182.28,8.7463535]
[1761857540023,0.1,182.31,182.29,8.7463535]
[1761857541226,0.1,182.31,182.26,8.7463535]
[1761857541227,0.78,182.31,182.26,8.7463535]
[1761857541430,6.26529241,182.31,182.26,9.4363535]
[1761857541629,5.58529241,182.31,182.26,9.4363535]
[1761857541828,5.58529241,182.31,182.23,6.17757065]
[1761857542016,5.58529241,182.31,182.22,23.50778068]
[1761857542017,0.1,182.31,182.27,8.7463535]
[1761857542221,0.1,182.31,182.3,8.7463535]
[1761857542424,0.1,182.31,182.3,18.53518119]
[1761857542745,9.67340127,182.41,182.3,18.53518119]
[1761857542746,0.78,182.41,182.3,19.22518119]
[1761857543036,0.78,182.41,182.37,8.7463535]
[1761857543037,6.26221884,182.41,182.37,8.7463535]
[1761857543250,6.26221884,182.41,182.36,8.7463535]
[1761857543424,6.16255178,182.4,182.36,8.7463535]
[1761857543616,0.1,182.41,182.37,8.7463535]
[1761857543817,0.1,182.41,182.38,8.7463535]
[1761857544218,0.68,182.4,182.36,8.7463535]
[1761857544421,0.68,182.4,182.35,8.7463535]
[1761857544657,0.68,182.4,182.34,8.7463535]
[1761857544816,0.68,182.4,182.33,8.7463535]
[1761857545021,0.68,182.4,182.32,0.69]
[1761857545022,39.87954963,182.41,182.34,0.69]
[1761857545226,39.87954963,182.41,182.35,8.7463535]
[1761857545462,19.18964855,182.39,182.34,8.7463535]
[1761857545620,19.18964855,182.39,182.33,8.7463535]
[1761857545823,8.7463535,182.36,182.29,8.7463535]
[1761857546020,21.272,182.38,182.27,8.7463535]
[1761857546021,8.7463535,182.34,182.27,8.7463535]
[1761857546414,0.68,182.33,182.27,8.7463535]
[1761857547258,20.592,182.36,182.31,8.7463535]
[1761857547547,0.68,182.35,182.29,8.7463535]
[1761857547763,9.4263535,182.35,182.28,8.7463535]
[1761857547970,5.48367785,182.36,182.31,8.7463535]
[1761857548254,6.16367785,182.36,182.31,8.7463535]
[1761857548620,0.69,182.35,182.3,8.7463535]
[1761857549249,29.3383535,182.33,182.26,8.7463535]
[1761857549463,8.7463535,182.32,182.26,8.7463535]
[1761857549632,5.48516263,182.31,182.26,8.7463535]
[1761857550020,0.69,182.3,182.24,8.7463535]
[1761857550724,0.69,182.3,182.25,8.7463535]
[1761857550930,5.48516263,182.31,182.25,8.7463535]
[1761857551124,6.17516263,182.31,182.25,8.7463535]
[1761857551650,5.48516263,182.31,182.27,8.7463535]
[1761857552023,5.48516263,182.31,182.27,9.4263535]
[1761857552223,9.4363535,182.34,182.29,8.7463535]
[1761857552224,5.48468708,182.33,182.29,8.7463535]
[1761857552424,5.48468708,182.33,182.28,9.4263535]